bitfinex/quotes_ETHUSD_20250331
["timestamp","ask_amount","ask_price","bid_price","bid_amount"]
[1743430533161,0.05,1834.9,1834.8,7.3658]
[1743430533365,0.05,1834.9,1834.8,12.81598]
[1743430533677,0.05,1834.9,1834.8,7.3658]
[1743430533881,5.45018,1834.8,1834.2,0.8845]
[1743430534178,8.45101,1834.6,1834.2,0.8845]
[1743430534664,3.0,1834.6,1834.2,6.39082276]
[1743430534971,0.55,1834.6,1834.1,6.56]
[1743430535153,3.0,1834.5,1834.2,0.05451337]
[1743430535675,13.90242,1834.5,1834.2,0.05451337]
[1743430535873,5.45138,1834.4,1834.1,6.56]
[1743430536073,5.45181,1834.3,1834.1,6.56]
[1743430536279,5.45212,1834.2,1833.8,0.8566]
[1743430536770,5.45168,1834.3,1833.9,0.05452174]
[1743430536949,2.257542,1834.5,1833.9,0.05452174]
[1743430537140,6.9428,1835.1,1834.0,6.25546]
[1743430537344,0.1074023,1835.2,1834.7,6.25323]
[1743430537575,0.1074023,1835.2,1834.8,0.05449514]
[1743430537755,0.1074023,1835.2,1834.7,12.81122]
[1743430537958,0.1074023,1835.2,1834.8,5.50467134]
[1743430538144,0.1074023,1835.2,1834.8,1.83158913]
[1743430538678,3.1074023,1835.2,1834.8,1.83158913]
[1743430538876,0.1074023,1835.2,1834.8,7.33625761]
[1743430539079,0.1074023,1835.2,1834.8,7.28176913]
[1743430540074,0.1074023,1835.2,1834.8,6.558]
[1743430540281,0.1074023,1835.2,1834.8,12.00818]
[1743430540879,0.1074023,1835.2,1834.7,0.8029]
[1743430540880,6.1066123,1835.2,1834.7,0.8029]
[1743430541247,0.1074023,1835.2,1834.7,6.25311]
[1743430541449,0.1074023,1835.2,1834.7,11.70341]
[1743430541659,0.1074023,1835.2,1834.7,8.079251]
[1743430541883,0.1074023,1835.2,1834.8,5.50467152]
[1743430542762,0.1074023,1835.2,1834.8,6.35187152]
[1743430543983,1e-05,1834.9,1834.8,6.35187152]
[1743430544286,0.05,1835.9,1835.6,6.29714]
[1743430544480,0.05,1835.9,1835.7,7.184714]
[1743430544774,0.05,1835.9,1835.7,6.555]
[1743430544974,0.05,1835.9,1835.7,12.05690892]
[1743430545179,0.05,1835.9,1835.7,6.555]
[1743430545379,0.05,1836.9,1835.8,0.8696]
[1743430545675,0.05,1836.9,1836.6,0.847]
[1743430546178,5.49416,1836.9,1836.5,6.554]
[1743430546366,1.15953523,1836.9,1836.5,6.554]
[1743430546560,0.05,1836.9,1836.5,6.554]
[1743430546761,0.05,1836.9,1836.7,5.44452]
[1743430547172,0.05,1836.9,1836.8,6.32295]
[1743430547481,1e-05,1836.9,1836.8,6.3773782]
[1743430547653,1e-05,1836.9,1836.8,6.37736559]
[1743430547855,1e-05,1836.9,1836.8,7.55955415]
[1743430548154,1e-05,1836.9,1836.8,7.50513856]
[1743430548355,0.1574023,1837.0,1836.9,5.44395]
[1743430548579,0.05,1837.9,1837.0,5.44346]
[1743430548779,5.44187,1837.7,1837.0,5.44342]
[1743430548955,0.544187,1837.6,1837.1,5.49763908]
[1743430549159,5.49116,1837.9,1837.2,5.44305]
[1743430549379,5.44131,1837.8,1837.2,5.44305]
[1743430549585,10.88288,1837.8,1837.2,5.44305]
[1743430549752,0.05,1837.9,1837.3,5.49704435]
[1743430549949,0.05,1837.9,1837.4,11.99232]
[1743430550149,0.05,1837.9,1837.6,5.44181]
[1743430550449,0.05,1837.9,1837.5,0.8524]
[1743430550654,0.05,1837.9,1837.7,5.44138]
[1743430550861,0.05,1837.9,1837.8,0.0544025]
[1743430551069,5.44135,1837.8,1837.5,7.4024]
[1743430551268,0.05,1837.9,1837.6,5.44188]
[1743430551453,0.05,1837.9,1837.8,5.44128]
[1743430551655,0.05,1837.9,1837.8,5.49567393]
[1743430552392,0.05,1837.9,1837.8,6.60439393]
[1743430552697,0.05,1837.9,1837.5,5.35394631]
[1743430552698,0.05,1837.9,1837.7,5.44137]
[1743430552898,0.05,1837.9,1837.6,5.44187]
[1743430552899,0.05,1837.9,1837.6,5.49626469]
[1743430553057,0.05,1837.9,1837.7,6.549]
[1743430553401,0.05,1837.9,1837.8,0.05440208]
[1743430553547,0.05,1837.9,1837.6,6.547]
[1743430553548,5.49099,1837.9,1837.6,6.547]
[1743430553876,6.584369,1837.9,1837.7,0.05440988]
[1743430554096,5.44157,1837.8,1837.6,6.547]
[1743430554252,6.584279,1837.9,1837.6,6.547]
[1743430554459,0.1074023,1838.8,1837.8,3.76130631]
[1743430554677,0.05,1838.9,1838.8,0.853]
[1743430554871,0.05,1838.9,1838.8,7.45437494]
[1743430555203,0.05,1838.9,1838.8,12.89269494]
[1743430555354,0.05,1838.9,1838.8,12.83832]
[1743430555554,0.05,1838.9,1838.8,0.853]
[1743430555789,0.05,1838.9,1838.8,7.416]
[1743430556386,0.05,1838.9,1838.8,5.35590631]
[1743430556588,0.05,1838.9,1838.8,13.71092]
[1743430556749,0.05,1838.9,1838.8,7.555]
[1743430556949,0.05,1838.9,1838.6,6.708]
[1743430557159,0.05,1838.9,1838.5,0.849]
[1743430557699,0.05,1838.9,1838.3,6.711]
[1743430557874,5.43832,1838.8,1838.3,6.711]
[1743430558058,5.987152,1838.8,1838.4,0.05438403]
[1743430558258,5.43906,1838.6,1838.3,6.711]
[1743430558455,5.43936,1838.5,1838.3,6.711]
[1743430558874,5.43881,1838.7,1838.3,6.711]
[1743430559281,5.43951,1838.4,1838.3,6.711]
[1743430559572,5.43951,1838.4,1837.8,0.8234]
[1743430559573,5.44002,1838.3,1838.0,6.714]
[1743430559956,5.44018,1838.2,1838.0,6.714]
[1743430560156,5.44116,1837.9,1837.4,0.8545]
[1743430560383,5.4416,1837.7,1837.4,6.725]
[1743430560655,5.44073,1838.0,1837.5,0.05441499]
[1743430560868,5.44073,1838.0,1837.5,0.6779415]
[1743430561073,5.44117,1837.9,1837.4,6.725]
[1743430561270,5.44117,1837.9,1837.1,6.29773]
[1743430561590,5.44236,1837.5,1837.2,6.763]
[1743430561807,5.44255,1837.4,1837.2,6.763]
[1743430562102,6.28518,1837.8,1836.9,0.8727]
[1743430562263,5.44321,1837.2,1836.9,6.762]
[1743430562462,3.628518,1837.7,1836.9,6.762]
[1743430562698,5.44294,1837.3,1837.0,0.0544291]
[1743430562861,5.44315,1837.2,1837.0,0.0544291]
[1743430563066,5.44284,1837.3,1837.0,0.0544291]
[1743430563262,5.44272,1837.4,1837.0,0.0544291]
[1743430563599,0.8699,1839.1,1837.3,0.8695]
[1743430563799,5.43797,1839.0,1837.5,4.63080631]
[1743430564096,5.44104,1837.9,1837.6,6.916]
[1743430564271,5.44071,1838.0,1837.6,6.916]
[1743430564486,5.44128,1837.8,1837.7,0.05440674]
[1743430564805,5.44158,1837.7,1837.6,6.916]
[1743430564959,5.44116,1837.9,1837.6,6.916]
[1743430565157,5.44148,1837.8,1837.6,6.916]
[1743430565361,10.88306,1837.8,1837.6,6.916]
[1743430565560,5.44148,1837.8,1837.6,6.916]
[1743430565799,10.88304,1837.8,1837.6,6.916]
[1743430566003,5.44148,1837.8,1837.6,6.916]
[1743430566172,11.426326,1837.9,1837.6,6.916]
[1743430566377,5.44129,1837.8,1837.6,6.916]
[1743430566584,5.44202,1837.6,1837.3,6.896]
[1743430566773,5.44233,1837.5,1837.0,0.8873]
[1743430566982,5.44252,1837.4,1837.0,7.7803]
[1743430567198,3.55,1837.9,1837.0,7.7803]
[1743430567495,8.44158,1837.7,1837.1,0.05442255]
[1743430567713,5.44292,1837.3,1836.8,0.05442724]
[1743430568177,5.44279,1837.3,1836.8,0.05442724]
[1743430568379,5.44331,1837.2,1836.8,0.05442724]
[1743430568574,5.44364,1837.1,1836.7,7.7743]
[1743430568796,5.44289,1837.3,1836.8,0.05443304]
[1743430569000,5.44323,1837.2,1836.8,0.05443304]
[1743430569310,5.44378,1837.0,1836.4,0.8094]
[1743430569493,5.44413,1836.9,1836.4,0.8094]
[1743430569670,5.44331,1837.2,1836.5,5.44512]
[1743430569873,5.44351,1837.1,1836.4,6.66169404]
[1743430570096,5.44367,1837.0,1836.5,0.6661694]
[1743430570625,5.4437,1837.0,1836.6,0.05443397]
[1743430570777,5.44447,1836.8,1836.6,0.05443397]
[1743430570977,5.44342,1837.1,1836.4,0.05444244]
[1743430570978,5.44499,1836.6,1836.4,0.05444244]
[1743430571177,5.44473,1836.7,1836.2,6.96644802]
[1743430571404,5.44473,1836.7,1836.2,7.75369282]
[1743430571567,0.8054,1836.9,1836.2,7.75369282]
[1743430571773,5.4456,1836.4,1836.1,0.960447]
[1743430572076,5.44602,1836.2,1836.1,0.05]
[1743430572296,5.44587,1836.3,1836.1,0.05]
[1743430572476,10.89175,1836.3,1836.1,0.05]
[1743430572808,5.44602,1836.2,1836.1,0.05]
[1743430573209,6.623289,1836.2,1836.1,0.05]
[1743430573600,7.173289,1836.2,1836.1,0.05]
[1743430573980,10.173289,1836.2,1836.1,1e-05]
[1743430576414,8.44602,1836.2,1836.1,1e-05]
[1743430577181,8.99602,1836.2,1836.1,1e-05]
[1743430579002,15.12602,1836.2,1836.1,1e-05]
[1743430580381,5.85011254,1836.7,1836.1,1e-05]
[1743430580382,6.13,1837.7,1836.2,0.8321]
[1743430580607,0.8456,1837.8,1837.0,5.44365]
[1743430580808,6.28691,1837.8,1837.1,7.03842403]
[1743430581008,5.44197,1837.6,1837.1,0.05442403]
[1743430581199,3.0,1837.2,1836.9,0.8321]
[1743430581418,8.44312,1837.2,1836.9,0.8321]
[1743430581597,5.44312,1837.2,1836.9,0.8321]
[1743430582009,5.44396,1836.9,1836.5,0.8547]
[1743430582316,5.44358,1837.1,1836.6,0.05444267]
[1743430582541,10.88717,1837.1,1836.6,0.05444267]
[1743430582695,3.0,1837.1,1836.6,0.05444268]
[1743430582886,5.44308,1837.2,1836.6,0.63542527]
[1743430583087,8.44351,1837.1,1836.6,0.05444087]
[1743430583292,5.44367,1837.0,1836.6,0.05444087]
[1743430583508,0.8447,1837.3,1836.6,0.05444087]
[1743430583818,5.44414,1836.9,1836.5,0.8547]
[1743430584114,5.44414,1836.9,1836.4,6.983]
[1743430584115,5.44371,1837.0,1836.4,5.49961566]
[1743430584290,5.44371,1837.0,1836.4,6.59414823]
[1743430584490,10.8876,1837.0,1836.4,6.59414823]
[1743430584686,5.44143,1837.8,1836.6,9.20614631]
[1743430584886,5.44213,1837.6,1837.0,5.44339]
[1743430585126,5.44213,1837.6,1837.1,0.0544243]
[1743430585282,5.44213,1837.6,1837.1,0.60420573]
[1743430585487,10.88349,1837.7,1837.1,0.60420573]
[1743430585732,5.44195,1837.6,1837.1,0.60420573]
[1743430585903,5.44195,1837.6,1837.1,0.0544243]
[1743430586099,5.44135,1837.8,1837.2,5.44287]
[1743430586407,5.44159,1837.7,1837.2,0.05442044]
[1743430586591,5.44199,1837.6,1837.2,0.05442044]
[1743430586992,3.0,1837.7,1837.2,5.49746044]
[1743430587210,3.0,1837.7,1837.2,1.14849248]
[1743430587407,3.0,1837.7,1837.2,8.12949248]
[1743430587789,5.44191,1837.6,1837.2,6.981]
[1743430587988,5.44191,1837.6,1836.9,12.47420414]
[1743430588323,5.44191,1837.6,1837.0,5.49796763]
[1743430588619,8.44158,1837.7,1837.0,10.94141763]
[1743430588820,3.0,1837.7,1837.1,5.44315]
[1743430588988,3.0,1837.7,1837.2,6.0417681]
[1743430589194,8.44161,1837.7,1837.2,0.5987381]
[1743430589519,6.13,1837.9,1837.2,0.0544231]
[1743430589710,3.0,1837.8,1837.2,5.44288]
[1743430589907,8.44142,1837.8,1837.3,0.05442052]
[1743430590109,3.0,1837.8,1837.3,0.05442052]
[1743430590310,5.44179,1837.7,1837.3,0.05442052]
[1743430590516,5.44192,1837.6,1836.9,5.44392]
[1743430590690,5.44265,1837.4,1836.8,6.25162]
[1743430590887,5.44265,1837.4,1836.9,6.99542834]
[1743430591087,5.44286,1837.3,1836.9,6.99542834]
[1743430591291,5.44286,1837.3,1836.8,0.86183389]
[1743430591592,5.44366,1837.0,1836.5,0.8803]
[1743430591807,5.44414,1836.9,1836.5,0.8803]
[1743430592090,13.88874,1836.8,1836.2,6.32623]
[1743430592315,3.0,1836.8,1836.3,0.05444751]
[1743430592510,11.57411,1836.9,1836.3,5.44555]
[1743430592704,5.44442,1836.8,1836.4,0.544555]
[1743430592902,5.44465,1836.7,1836.3,0.05444284]
[1743430593312,5.4452,1836.5,1836.3,0.05444284]
[1743430593512,5.4452,1836.5,1836.2,0.8297]
[1743430593712,10.89061,1836.5,1836.2,0.8297]
[1743430593915,10.92211747,1836.5,1836.2,0.8297]
[1743430594123,0.03150747,1836.5,1836.1,7.01246524]
[1743430594336,5.44484,1836.6,1836.1,0.05446524]
[1743430594626,5.44602,1836.2,1836.1,1e-05]
[1743430594932,5.47752747,1836.2,1836.1,1e-05]
[1743430595098,18.91883378,1836.2,1836.1,1e-05]
[1743430595303,18.88732631,1836.2,1836.1,1e-05]
[1743430595911,5.4485,1835.4,1835.2,0.92208115]
[1743430596110,5.44737,1835.8,1835.1,0.05]
[1743430596111,11.60907747,1835.7,1835.1,0.05]
[1743430596427,5.44826,1835.5,1835.1,0.05]
[1743430596823,5.4485,1835.4,1835.1,0.05]
[1743430597010,10.89713,1835.4,1835.1,0.05]
[1743430597405,5.4485,1835.4,1835.1,0.05]
[1743430597629,5.44873,1835.3,1835.1,0.05]
[1743430597835,5.44899,1835.2,1835.1,0.05]
[1743430598329,5.48023747,1835.3,1835.1,0.05]
[1743430598536,5.44899,1835.2,1835.1,0.05]
[1743430598837,8.99899,1835.2,1835.1,0.05]
[1743430599333,15.16049747,1835.2,1835.1,0.05]
[1743430599636,15.12899,1835.2,1835.1,0.05]
[1743430600123,5.45091,1834.6,1834.3,0.86240699]
[1743430600326,5.45027,1834.8,1834.3,0.86240699]
[1743430600527,5.45051,1834.7,1834.3,0.86240699]
[1743430600722,5.48156747,1834.9,1834.3,6.31393699]
[1743430600935,5.45029,1834.8,1834.4,0.6313937]
[1743430601110,5.45037,1834.8,1834.3,0.86240699]
[1743430601309,5.45018,1834.8,1834.3,0.86240699]
[1743430601505,5.45018,1834.8,1834.4,0.05450692]
[1743430602121,10.90064,1834.8,1834.4,0.05450692]
[1743430602331,5.45058,1834.7,1834.4,0.05450692]
[1743430602641,5.48139747,1834.9,1834.4,0.05450692]
[1743430603135,5.45022,1834.8,1834.4,0.05450692]
[1743430603338,5.48216747,1834.7,1834.3,0.8079]
[1743430603538,5.4508,1834.6,1834.3,0.8079]
[1743430603909,5.48201747,1834.7,1834.3,0.8079]
[1743430604127,0.03150747,1834.7,1834.3,0.8079]
[1743430604310,5.48139747,1834.9,1834.4,0.0545123]
[1743430604812,5.44989,1834.9,1834.4,5.5058661]
[1743430605128,5.4494,1835.1,1834.5,12.30795]
[1743430605314,5.4494,1835.1,1834.6,0.05449748]
[1743430605515,5.44933,1835.1,1834.7,0.8399]
[1743430605737,5.44937,1835.1,1834.7,0.8399]
[1743430605932,5.44988,1835.0,1834.7,0.8399]
[1743430606339,10.93117747,1835.0,1834.7,0.8399]
[1743430606546,10.93115747,1835.0,1834.7,0.8399]
[1743430606706,5.44992,1834.9,1834.7,0.8399]
[1743430607035,0.03150747,1835.0,1834.6,0.05450219]
[1743430607207,0.03150747,1835.0,1834.6,0.60504541]
[1743430607405,5.48049747,1835.2,1834.6,6.05566541]
[1743430607636,5.44931,1835.1,1834.6,6.05566541]
[1743430607938,5.48049747,1835.2,1834.6,6.05564541]
[1743430608137,5.44872,1835.3,1834.9,0.8096]
[1743430608138,0.03150747,1835.3,1834.9,0.8096]
[1743430608328,0.03150747,1835.3,1834.9,0.86409277]
[1743430608534,0.03150747,1835.3,1834.9,1.49550005]
[1743430608731,5.44857,1835.4,1834.9,6.94524005]
[1743430608732,0.03150747,1835.4,1834.9,6.94524005]
[1743430609046,5.48001747,1835.4,1834.9,6.94524005]
[1743430609353,5.47973747,1835.5,1834.9,6.94523888]
[1743430609861,5.4489,1835.3,1834.9,1.49549888]
[1743430610045,10.92990747,1835.2,1834.9,0.8096]
[1743430610341,10.92990747,1835.2,1834.7,3.05449532]
[1743430610510,10.89902,1835.1,1834.6,1.47294055]
[1743430610715,0.03150747,1835.2,1834.6,1.47294055]
[1743430610716,5.48129747,1835.0,1834.6,1.47294055]
[1743430610917,10.93107747,1835.0,1834.6,0.92239733]
[1743430611232,0.03150747,1835.0,1834.6,6.37312733]
[1743430611638,5.48112747,1835.0,1834.6,0.92239733]
[1743430612610,0.03150747,1835.0,1834.6,0.8679]
[1743430612814,5.44973,1835.0,1834.6,0.8679]
[1743430613163,0.58150747,1834.9,1834.3,0.7876]
[1743430613313,5.4514,1834.4,1834.1,0.05]
[1743430613518,5.48331747,1834.3,1834.1,0.05]
[1743430614037,5.45196,1834.2,1834.1,0.05]
[1743430614947,10.93518747,1834.3,1834.1,0.05]
[1743430615144,5.45196,1834.2,1834.1,0.05]
[1743430615646,5.48346747,1834.2,1834.1,0.05]
[1743430616233,12.16346747,1834.2,1834.1,0.05]
[1743430616437,12.13196,1834.2,1834.1,0.05]
[1743430616746,15.98406,1834.2,1834.1,0.05]
[1743430617051,18.23699887,1834.2,1834.1,0.05]
[1743430618814,24.93199887,1834.2,1834.1,0.05]
[1743430619751,24.93199887,1834.2,1834.1,1e-05]
[1743430620260,56.37129887,1834.2,1834.1,1e-05]
[1743430621761,56.47129887,1834.2,1834.1,1e-05]
[1743430621946,56.37129887,1834.2,1834.1,1e-05]
[1743430622354,55.79229887,1834.2,1834.1,1e-05]
[1743430623019,56.34229887,1834.2,1834.1,1e-05]
[1743430624345,46.12629887,1834.2,1834.1,1e-05]
[1743430624543,5.45297,1833.9,1833.4,0.85927707]
[1743430624851,5.48448747,1833.9,1833.4,0.85927707]
[1743430625062,5.45374,1833.7,1833.4,0.8047393]
[1743430625246,5.48536747,1833.6,1833.4,0.8047393]
[1743430625445,5.45258,1834.0,1833.4,0.8047393]
[1743430625446,5.48453747,1833.9,1833.4,0.8047393]
[1743430625619,5.48453747,1833.9,1833.5,0.05453481]
[1743430625824,5.45329,1833.8,1833.5,0.05453481]
[1743430626026,0.03150747,1833.9,1833.5,0.05453481]
[1743430626269,0.03150747,1833.9,1833.5,0.68587422]
[1743430626481,11.58169,1834.3,1833.7,5.45323]
[1743430626800,11.58169,1834.3,1833.5,0.68587422]
[1743430626801,5.45288,1833.9,1833.6,6.636]
[1743430627065,5.45288,1833.9,1833.3,5.5618123]
[1743430627066,5.45348,1833.7,1833.3,6.7474023]
[1743430627277,0.03150747,1833.8,1833.3,0.16194248]
[1743430627570,5.45355,1833.7,1833.4,0.8046]
[1743430627873,5.45381,1833.6,1833.4,0.8046]
[1743430628225,0.03150747,1833.7,1833.4,0.8046]
[1743430628576,6.00434,1833.4,1833.3,0.1074023]
[1743430628781,13.31170847,1833.4,1833.3,0.1074023]
[1743430628943,13.280201,1833.4,1833.3,0.1074023]
[1743430629284,12.13434,1833.4,1833.3,0.1074023]
[1743430629428,11.58434,1833.4,1833.3,0.1074023]
[1743430629931,14.58434,1833.4,1833.3,0.1074023]
[1743430630338,8.45434,1833.4,1833.3,0.1074023]
[1743430630864,9.03584747,1833.4,1833.3,0.1074023]
[1743430632129,16.61485922,1833.4,1833.3,0.1074023]
[1743430632360,16.58335175,1833.4,1833.3,0.1074023]
[1743430633036,24.41227783,1833.4,1833.3,0.1074023]
[1743430633659,24.41227783,1833.4,1833.3,2.3e-06]
[1743430634169,23.62037783,1833.4,1833.3,2.3e-06]
[1743430634557,16.99237783,1833.4,1833.3,2.3e-06]
[1743430634752,15.54336608,1833.4,1833.3,2.3e-06]
[1743430636275,16.35166608,1833.4,1833.3,2.3e-06]
[1743430636941,15.54336608,1833.4,1833.3,2.3e-06]
[1743430639171,5.45494,1833.2,1833.1,2.3e-06]
[1743430639393,15.16644747,1833.2,1833.1,2.3e-06]
[1743430639677,17.9289246,1833.2,1833.1,2.3e-06]
[1743430639851,15.13494,1833.2,1833.1,2.3e-06]
[1743430640781,14.58494,1833.2,1833.1,2.3e-06]
[1743430641151,15.13494,1833.2,1833.1,2.3e-06]
[1743430641350,15.95514,1833.2,1833.1,2.3e-06]
[1743430643181,22.52714,1833.2,1833.1,2.3e-06]
[1743430643386,26.24766985,1833.2,1833.1,2.3e-06]
[1743430645711,26.24766985,1833.2,1832.1,0.9228]
[1743430645712,5.45791,1832.2,1832.1,0.9228]
[1743430645869,5.45764,1832.3,1832.1,0.9228]
[1743430646195,10.91561,1832.3,1832.1,0.9228]
[1743430646487,5.48933747,1832.3,1832.1,0.9228]
[1743430646689,0.03150747,1832.3,1832.1,0.9228]
[1743430646983,5.48926747,1832.3,1832.1,0.9228]
[1743430647390,9.00791,1832.2,1832.1,0.05]
[1743430647781,9.03941747,1832.2,1832.1,0.05]
[1743430647976,15.16941747,1832.2,1832.1,0.05]
[1743430648156,15.95051,1832.2,1832.1,0.05]
[1743430648761,6.0097,1831.6,1831.5,0.1074023]
[1743430648960,9.0097,1831.6,1831.5,0.1074023]
[1743430649161,5.45901,1831.9,1831.5,0.9814023]
[1743430649407,0.03150747,1831.9,1831.5,0.9814023]
[1743430649594,5.49033747,1831.9,1831.5,0.9814023]
[1743430649791,3.03150747,1831.9,1831.5,0.9814023]
[1743430650013,5.45833,1832.1,1831.6,5.51429386]
[1743430650178,0.03150747,1832.0,1831.7,1.34572939]
[1743430650374,5.45764,1832.3,1831.8,0.05458929]
[1743430650573,3.7686385,1832.6,1831.7,1.34572939]
[1743430650574,5.48956747,1832.2,1831.7,1.34572939]
[1743430650803,5.45854,1832.0,1831.7,1.34572939]
[1743430651103,0.03150747,1831.9,1831.7,0.7943]
[1743430651310,5.48996747,1832.1,1831.7,0.7943]
[1743430651505,0.03150747,1832.1,1831.7,0.7943]
[1743430651707,8.45794,1832.2,1831.8,0.8463]
[1743430651708,3.0,1832.2,1831.8,0.8463]
[1743430651866,5.45763,1832.3,1831.8,0.8463]
[1743430651867,0.03150747,1832.1,1831.8,0.8463]
[1743430652170,8.48942747,1832.2,1831.8,1.58903]
[1743430652374,3.03150747,1832.2,1831.8,0.8463]
[1743430652776,5.45835,1832.1,1831.8,0.8463]
[1743430652976,0.55,1832.0,1831.8,0.8463]
[1743430653397,6.00851,1832.0,1831.8,0.8463]
[1743430653700,5.45835,1832.1,1831.8,0.8463]
[1743430653701,5.45821,1832.1,1831.8,0.8463]
[1743430653993,3.0,1832.2,1831.9,0.05458747]
[1743430654196,0.03150747,1832.1,1831.8,1.58903]
[1743430654494,5.48978747,1832.1,1831.8,0.8463]
[1743430654802,3.03150747,1832.2,1831.8,0.8463]
[1743430655008,5.45831,1832.1,1831.8,0.8463]
[1743430655302,5.49003747,1832.0,1831.8,0.8463]
[1743430655963,0.03150747,1832.0,1831.8,0.8463]
[1743430656168,5.45881,1831.9,1831.8,0.8463]
[1743430657201,5.49016747,1832.0,1831.8,0.8463]
[1743430657500,0.8417,1832.4,1831.9,5.45872]
[1743430657501,3.0,1832.3,1831.9,5.45872]
[1743430657667,10.91494,1832.4,1832.0,0.545872]
[1743430657870,5.45734,1832.4,1832.0,0.545872]
[1743430658070,0.03150747,1832.3,1831.8,6.30528]
[1743430658380,5.45792,1832.2,1831.8,0.8463]
[1743430658569,5.48984747,1832.1,1831.8,0.8463]
[1743430658968,5.45853,1832.0,1831.8,0.8463]
[1743430659318,5.45851,1832.0,1831.8,0.8463]
[1743430659526,0.03150747,1832.1,1831.8,0.8463]
[1743430659809,5.45881,1831.9,1831.8,0.8463]
[1743430659970,5.49031747,1831.9,1831.6,0.8403]
[1743430660172,10.91843,1831.8,1831.6,0.8403]
[1743430660373,5.45913,1831.8,1831.6,0.8403]
[1743430660613,5.45917,1831.8,1831.6,0.8403]
[1743430661119,5.49032747,1831.9,1831.6,0.8403]
[1743430661324,5.45923,1831.8,1831.6,0.8403]
[1743430661689,5.4594,1831.7,1831.6,0.8403]
[1743430663209,5.49073747,1831.8,1831.6,0.8403]
[1743430663405,0.03150747,1831.9,1831.6,0.8403]
[1743430663566,6.04003747,1832.0,1831.6,0.8403]
[1743430663772,5.45882,1831.9,1831.6,0.8403]
[1743430663994,10.91661,1832.1,1831.6,1.48651158]
[1743430664269,8.45865,1832.0,1831.6,1.48651158]
[1743430664473,8.45836,1832.1,1831.6,6.94607158]
[1743430664670,3.0,1832.1,1831.8,5.45901]
[1743430664873,6.13,1832.2,1831.9,6.31178]
[1743430665109,5.45693,1832.6,1832.1,5.45812]
[1743430665269,0.03150747,1832.5,1832.2,0.853]
[1743430665470,5.48855747,1832.5,1832.2,0.853]
[1743430665792,0.03150747,1832.5,1832.2,0.853]
[1743430665991,5.48795747,1832.7,1832.2,0.90757517]
[1743430666180,0.03150747,1832.7,1832.2,0.853]
[1743430666380,5.45716,1832.5,1832.2,0.853]
[1743430666593,5.48866747,1832.5,1832.2,0.853]
[1743430666806,5.45708,1832.5,1832.2,1.48957665]
[1743430667014,5.45683,1832.6,1832.2,0.853]
[1743430667197,294.31202626,1833.0,1832.4,0.8224]
[1743430667198,290.0,1833.0,1832.4,0.8224]
[1743430667510,295.45561,1833.0,1832.6,0.8224]
[1743430667706,295.45561,1833.0,1832.3,6.575]
[1743430667707,11.58535,1833.1,1832.3,6.5742]
[1743430668008,3.0,1832.9,1832.4,10.91448]
[1743430668309,11.58575,1833.0,1832.5,1.091448]
[1743430668508,11.61737747,1832.9,1832.3,12.03173]
[1743430668821,6.13,1832.8,1832.4,0.05456371]
[1743430669107,5.45684,1832.6,1832.3,6.5742]
[1743430669286,6.13,1832.6,1832.3,6.5742]
[1743430670004,6.13,1832.6,1832.4,0.05456858]
[1743430670209,6.13,1832.6,1832.5,5.40702]
[1743430670785,0.05,1832.9,1832.7,5.45631]
[1743430671120,0.05,1832.9,1832.8,0.05455569]
[1743430672013,0.05,1832.9,1832.6,0.8366]
[1743430672797,31.537,1832.9,1832.6,0.8366]
[1743430673822,5.45695,1832.6,1832.3,0.8376]
[1743430673982,3.0,1832.7,1832.3,0.8376]
[1743430673983,5.45732,1832.4,1832.3,0.8376]
[1743430674184,6.13,1832.4,1832.0,0.8376]
[1743430674387,5.45801,1832.2,1832.0,0.8376]
[1743430674806,5.45862,1832.0,1831.7,0.8376]
[1743430675014,31.487,1831.9,1831.7,0.8376]
[1743430676598,36.94592,1831.9,1831.5,0.86569213]
[1743430676790,31.487,1831.9,1831.5,0.86569213]
[1743430676990,36.94592,1831.9,1831.5,0.86569213]
[1743430677220,5.49077747,1831.8,1831.5,0.8111]
[1743430677384,17.08014747,1831.8,1831.5,0.8111]
[1743430677590,6.13,1831.8,1831.5,0.8111]
[1743430677817,6.16150747,1831.8,1831.5,0.8111]
[1743430678028,6.13,1831.8,1831.5,0.8111]
[1743430678186,6.13,1831.8,1831.5,6.90367575]
[1743430678392,6.13,1831.8,1831.5,1.44369575]
[1743430678693,6.13,1831.8,1831.5,0.8111]
[1743430678894,11.5892,1831.8,1831.5,0.8111]
[1743430679087,11.5892,1831.8,1831.2,0.772]
[1743430679088,9.16150747,1831.7,1831.2,0.772]
[1743430679313,9.16150747,1831.7,1830.3,5.56344]
[1743430679314,5.46144,1831.1,1830.7,0.772]
[1743430679489,34.52250747,1831.0,1830.7,0.772]
[1743430679695,34.491,1831.0,1830.7,0.772]
[1743430681945,31.491,1831.0,1830.8,0.05461423]
[1743430682101,31.491,1831.0,1830.9,6.30689]
[1743430682502,31.491,1831.0,1830.9,6.36149737]
[1743430682722,31.491,1831.0,1830.9,8.27194046]
[1743430683224,27.4911,1831.0,1830.9,8.27194046]
[1743430683412,6.13,1832.1,1831.7,0.8254]
[1743430683617,36.98817747,1832.0,1831.7,0.8254]
[1743430683816,5.45885,1831.9,1831.7,0.8254]
[1743430684115,31.498,1832.0,1831.7,0.8254]
[1743430684714,31.498,1832.0,1831.8,0.0545878]
[1743430685098,31.498,1832.0,1831.8,5.5135778]
[1743430685298,31.498,1832.0,1831.8,10.9725678]
[1743430685736,31.498,1832.0,1831.8,5.5135778]
[1743430685910,31.498,1832.0,1831.8,0.0545878]
[1743430686311,31.498,1832.0,1831.7,0.8254]
[1743430686511,31.498,1832.0,1831.7,0.87998418]